[Event "Budapest One Week IM-B 03-2025"]
[Site "Budapest"]
[Date "2025.03.18"]
[Round "2.1"]
[White "Pribelszky, Bence"]
[Black "Jing, Andrew"]
[Result "1-0"]
[Annotator "RC"]
[ECO "A48"]
[WhiteElo "2400"]
[BlackElo "2198"]
[PlyCount "119"]
[EventDate "2025.03.17"]
[EventType "tourn"]
[EventCountry "HUN"]
[SourceTitle "playchess.com"]
[Source "ChessBase"]
[SourceQuality "1"]
[TimeControl "5400+30"]

1. Nf3 {[%emt 0:18:31]} Nf6 {[%emt 0:00:14]} 2. d4 {[%emt 0:00:15]} g6 {[%emt 0:00:04]} 3. Nbd2 {[%emt 0:00:09]} d5 {[%emt 0:02:04]} 4. b3 {[%emt 0:00:19]} Bg7 {[%emt 0:00:06]} 5. Bb2 {[%emt 0:00:07]} O-O {[%emt 0:00:06]} 6. e3 {[%emt 0:00:09]} Bf5 {[%emt 0:03:42]} 7. h3 {[%emt 0:09:46]} a5 8. a3 {[%emt 0:01:15]} c6 {[%emt 0:10:51]} 9. Be2 {[%emt 0:00:35]} a4 {[%emt 0:01:46]} 10. b4 {[%emt 0:20:06]} Nbd7 {[%emt 0:00:30]} 11. g4 {[%emt 0:00:30]} Be4 {[%emt 0:00:30]} 12. c4 {[%emt 0:00:30]} Bxf3 {[%emt 0:03:07]} 13. Bxf3 {[%emt 0:00:55]} Nb6 {[%emt 0:00:28]} 14. c5 {[%emt 0:03:50]} Nbd7 {[%emt 0:00:34]} 15. Bg2 {[%emt 0:00:31]} Ne8 {[%emt 0:00:55]} 16. f4 {[%emt 0:00:39]} e6 {[%emt 0:01:51]} 17. h4 {[%emt 0:03:21]} f5 {[%emt 0:00:49]} 18. g5 {[%emt 0:06:33]} h6 {[%emt 0:01:26]} 19. gxh6 {[%emt 0:15:53]} Bxh6 {[%emt 0:00:06]} 20. Qe2 {[%emt 0:00:19]} Rf7 {[%emt 0:01:55]} 21. O-O-O {[%emt 0:00:22]} Rg7 {[%emt 0:00:23]} 22. Bf3 {[%emt 0:00:58]} Kh7 {[%emt 0:01:36]} 23. Rdg1 {[%emt 0:00:42]} Nc7 {[%emt 0:01:47]} 24. Qh2 {[%emt 0:02:12]} Rc8 {[%emt 0:02:38]} 25. Bd1 {[%emt 0:01:04]} Qe7 {[%emt 0:02:11]} 26. Nf3 {[%emt 0:01:10]} Nf8 {[%emt 0:03:27]} 27. Ng5+ {[%emt 0:05:57]} Bxg5 {[%emt 0:00:07]} 28. Rxg5 {[%emt 0:00:33]} Kg8 {[%emt 0:03:12]} 29. h5 {[%emt 0:00:17]} Rh7 {[%emt 0:00:51]} 30. Qg2 {[%emt 0:01:15]} Ne8 {[%emt 0:01:04]} 31. hxg6 {[%emt 0:02:00]} Rxh1 {[%emt 0:00:05]} 32. Qxh1 {[%emt 0:00:04]} Qf6 {[%emt 0:04:24]} 33. Bc3 {[%emt 0:00:50]} Rc7 {[%emt 0:00:26]} 34. Be1 {[%emt 0:03:08]} Rg7 {[%emt 0:00:29]} 35. Bh5 {[%emt 0:01:34]} Nxg6 {[%emt 0:00:48]} 36. Qg1 {[%emt 0:00:08]} Kh7 {[%emt 0:00:29]} 37. Rg2 {[%emt 0:01:53]} Nc7 {[%emt 0:02:50]} 38. Bd1 {[%emt 0:00:17]} Nb5 {[%emt 0:02:17]} 39. Kb2 {[%emt 0:00:09]} Nc7 {[%emt 0:05:06]} 40. Bxa4 {[%emt 0:00:06]} Ne8 {[%emt 0:00:15]} 41. Bd1 {[%emt 0:00:22]} Qf7 {[%emt 0:01:11]} 42. a4 {[%emt 0:00:53]} Nf6 {[%emt 0:00:06]} 43. b5 {[%emt 0:01:13]} cxb5 {[%emt 0:00:07]} 44. axb5 {[%emt 0:00:04]} Qd7 {[%emt 0:00:19]} 45. Be2 {[%emt 0:00:24]} Ne4 {[%emt 0:00:24]} 46. Ba5 {[%emt 0:01:01]} Qe8 {[%emt 0:01:02]} 47. Kb3 {[%emt 0:00:32]} Qa8 {[%emt 0:00:43]} 48. Bb4 {[%emt 0:00:24]} Qe8 {[%emt 0:00:43]} 49. Qa1 {[%emt 0:00:41]} Kh8 {[%emt 0:00:58]} 50. Qa5 {[%emt 0:00:31]} Kh7 {[%emt 0:01:46]} 51. Bh5 {[%emt 0:00:21]} Qd7 {[%emt 0:00:05]} 52. Qb6 {[%emt 0:00:40]} Ne7 {[%emt 0:00:20]} 53. Rxg7+ {[%emt 0:00:11]} Kxg7 {[%emt 0:00:01]} 54. Be2 {[%emt 0:00:49]} Kf7 {[%emt 0:00:48]} 55. Qa7 {[%emt 0:00:21]} Qc8 {[%emt 0:00:47]} 56. c6 {[%emt 0:00:35]} Nxc6 {[%emt 0:00:04]} 57. bxc6 {[%emt 0:00:04]} Qxc6 {[%emt 0:00:05]} 58. Qb8 {[%emt 0:00:55]} Kg6 {[%emt 0:00:40]} 59. Qg8+ {[%emt 0:00:17]} Kf6 {[%emt 0:00:05]} 60. Qh8+ {[%emt 0:00:27]} 1-0

[Event "Budapest One Week IM-B 03-2025"]
[Site "Budapest"]
[Date "2025.03.18"]
[Round "2.2"]
[White "Turcsanyi, Vince Gergo"]
[Black "Varga, Zoltan"]
[Result "0-1"]
[Annotator "RC"]
[ECO "C41"]
[WhiteElo "2285"]
[BlackElo "2305"]
[PlyCount "74"]
[EventDate "2025.03.17"]
[EventType "tourn"]
[EventCountry "HUN"]
[SourceTitle "playchess.com"]
[Source "ChessBase"]
[SourceQuality "1"]
[TimeControl "5400+30"]

1. e4 {[%emt 0:00:05]} d6 {[%emt 0:18:47]} 2. d4 {[%emt 0:00:36]} Nf6 {[%emt 0:00:05]} 3. Nc3 {[%emt 0:00:24]} e5 {[%emt 0:00:06]} 4. Nf3 {[%emt 0:02:33]} Nbd7 {[%emt 0:00:41]} 5. Be2 {[%emt 0:03:53]} c6 {[%emt 0:00:32]} 6. a4 {[%emt 0:00:53]} Be7 {[%emt 0:00:07]} 7. O-O {[%emt 0:03:16]} O-O {[%emt 0:00:05]} 8. Re1 {[%emt 0:12:08]} Re8 {[%emt 0:00:51]} 9. dxe5 {[%emt 0:09:16]} dxe5 {[%emt 0:00:10]} 10. Bc4 {[%emt 0:01:25]} Bb4 {[%emt 0:03:43]} 11. Qe2 {[%emt 0:18:52]} Qe7 {[%emt 0:01:23]} 12. Nh4 {[%emt 0:10:40]} Nc5 {[%emt 0:12:25]} 13. Nf5 {[%emt 0:05:44]} Bxf5 {[%emt 0:00:56]} 14. exf5 {[%emt 0:00:02]} Rad8 {[%emt 0:00:14]} 15. Bg5 {[%emt 0:03:03]} h6 {[%emt 0:03:11]} 16. Bh4 {[%emt 0:08:23]} Rd4 {[%emt 0:04:40]} 17. g3 {[%emt 0:09:53]} Red8 {[%emt 0:12:18]} 18. Red1 {[%emt 0:02:30]} Bxc3 {[%emt 0:09:25]} 19. bxc3 {[%emt 0:00:30]} Rxd1+ {[%emt 0:00:29]} 20. Rxd1 {[%emt 0:00:06]} Rxd1+ {[%emt 0:00:35]} 21. Qxd1 {[%emt 0:00:01]} Nce4 {[%emt 0:00:14]} 22. Bxf6 {[%emt 0:05:11]} Nxf6 {[%emt 0:00:24]} 23. Qd3 {[%emt 0:01:18]} b6 {[%emt 0:06:20]} 24. Bb3 {[%emt 0:01:10]} Nd7 {[%emt 0:00:07]} 25. Qa6 {[%emt 0:00:26]} Nf8 {[%emt 0:01:34]} 26. Qc8 {[%emt 0:00:31]} c5 {[%emt 0:04:34]} 27. Qb8 {[%emt 0:00:05]} e4 {[%emt 0:00:12]} 28. Kg2 {[%emt 0:00:59]} e3 {[%emt 0:01:03]} 29. fxe3 {[%emt 0:00:22]} c4 {[%emt 0:00:33]} 30. Ba2 {[%emt 0:00:39]} Qe4+ {[%emt 0:00:09]} 31. Kf1 {[%emt 0:00:28]} Qf3+ {[%emt 0:03:24]} 32. Ke1 {[%emt 0:00:13]} Qxe3+ {[%emt 0:00:06]} 33. Kd1 {[%emt 0:00:49]} Qxc3 {[%emt 0:00:05]} 34. Bb1 {[%emt 0:00:34]} Qb2 {[%emt 0:00:21]} 35. Qxa7 {[%emt 0:00:05]} Qxb1+ {[%emt 0:00:20]} 36. Kd2 {[%emt 0:00:04]} Qb4+ {[%emt 0:00:14]} 37. Kc1 {[%emt 0:00:08]} c3 {[%emt 0:00:20]} 0-1

[Event "Budapest One Week IM-B 03-2025"]
[Site "Budapest"]
[Date "2025.03.18"]
[Round "2.3"]
[White "Venkatesh, Narayan"]
[Black "Kustar, Sandor"]
[Result "1-0"]
[Annotator "RC"]
[ECO "E42"]
[WhiteElo "2203"]
[BlackElo "2231"]
[PlyCount "59"]
[EventDate "2025.03.17"]
[EventType "tourn"]
[EventCountry "HUN"]
[SourceTitle "playchess.com"]
[Source "ChessBase"]
[SourceQuality "1"]
[TimeControl "5400+30"]

1. d4 {[%emt 0:00:06]} Nf6 {[%emt 0:00:12]} 2. c4 {[%emt 0:00:06]} e6 {[%emt 0:00:13]} 3. Nc3 {[%emt 0:00:08]} Bb4 {[%emt 0:00:15]} 4. e3 {[%emt 0:00:10]} c5 {[%emt 0:00:15]} 5. Nge2 {[%emt 0:00:10]} cxd4 {[%emt 0:00:47]} 6. exd4 {[%emt 0:00:10]} O-O {[%emt 0:00:43]} 7. a3 {[%emt 0:00:11]} Be7 {[%emt 0:00:25]} 8. d5 {[%emt 0:00:10]} exd5 {[%emt 0:00:07]} 9. cxd5 {[%emt 0:00:01]} Re8 {[%emt 0:00:18]} 10. d6 {[%emt 0:01:39]} Bf8 {[%emt 0:00:06]} 11. g3 {[%emt 0:00:06]} b6 {[%emt 0:02:09]} 12. Bg2 {[%emt 0:00:42]} Nc6 {[%emt 0:00:08]} 13. O-O {[%emt 0:02:29]} Ba6 {[%emt 0:08:38]} 14. Re1 {[%emt 0:03:56]} Rc8 {[%emt 0:04:08]} 15. Be3 {[%emt 0:04:40]} Ng4 {[%emt 0:10:17]} 16. Bf4 {[%emt 0:27:17]} Qf6 {[%emt 0:24:46]} 17. h3 {[%emt 0:14:33]} Nge5 {[%emt 0:01:25]} 18. Nd5 {[%emt 0:09:01]} Qxd6 {[%emt 0:02:19]} 19. Nec3 {[%emt 0:06:27]} Qg6 {[%emt 0:18:56]} 20. b4 Bc4 21. b5 {[%emt 0:04:31]} Nd3 {[%emt 0:00:47]} 22. Rxe8 {[%emt 0:00:11]} Rxe8 {[%emt 0:00:02]} 23. bxc6 {[%emt 0:01:03]} dxc6 {[%emt 0:00:45]} 24. Ne3 {[%emt 0:00:29]} Ba6 {[%emt 0:05:54]} 25. Qa4 {[%emt 0:03:32]} Qf6 {[%emt 0:04:41]} 26. Qxa6 {[%emt 0:04:12]} Qxc3 {[%emt 0:00:09]} 27. Rd1 {[%emt 0:01:10]} Nxf4 {[%emt 0:02:01]} 28. gxf4 {[%emt 0:00:03]} Bxa3 {[%emt 0:02:14]} 29. Qxa7 {[%emt 0:01:26]} Bc5 {[%emt 0:01:37]} 30. Qd7 {[%emt 0:01:04]} 1-0

[Event "Budapest One Week IM-B 03-2025"]
[Site "Budapest"]
[Date "2025.03.18"]
[Round "2.4"]
[White "Shah, Vishwa"]
[Black "Luebke, Florentin"]
[Result "1-0"]
[Annotator "RC"]
[ECO "B23"]
[WhiteElo "2172"]
[BlackElo "2233"]
[PlyCount "109"]
[EventDate "2025.03.17"]
[EventType "tourn"]
[EventCountry "HUN"]
[SourceTitle "playchess.com"]
[Source "ChessBase"]
[SourceQuality "1"]
[TimeControl "5400+30"]

1. e4 {[%emt 0:00:01]} c5 {[%emt 0:00:10]} 2. Nc3 {[%emt 0:00:06]} d6 {[%emt 0:00:30]} 3. d4 {[%emt 0:00:13]} cxd4 {[%emt 0:00:56]} 4. Qxd4 {[%emt 0:00:04]} Nc6 {[%emt 0:00:30]} 5. Qd2 {[%emt 0:00:05]} g6 {[%emt 0:01:01]} 6. b3 {[%emt 0:00:35]} Bh6 {[%emt 0:01:09]} 7. f4 {[%emt 0:00:20]} Nf6 {[%emt 0:01:02]} 8. Bb2 {[%emt 0:00:07]} O-O {[%emt 0:01:45]} 9. O-O-O {[%emt 0:00:09]} Re8 {[%emt 0:01:59]} 10. Kb1 {[%emt 0:01:34]} a5 {[%emt 0:04:08]} 11. a4 {[%emt 0:00:39]} Nb4 {[%emt 0:05:54]} 12. Nf3 {[%emt 0:13:35]} Nh5 {[%emt 0:04:04]} 13. Ng5 {[%emt 0:12:14]} Bg4 {[%emt 0:02:10]} 14. Re1 {[%emt 0:06:58]} e5 {[%emt 0:11:00]} 15. Bc4 {[%emt 0:00:30]} Be6 {[%emt 0:01:40]} 16. Nxe6 {[%emt 0:00:44]} fxe6 {[%emt 0:16:28]} 17. Rd1 {[%emt 0:00:45]} exf4 {[%emt 0:11:00]} 18. Qxd6 {[%emt 0:02:01]} Qxd6 {[%emt 0:00:15]} 19. Rxd6 {[%emt 0:00:01]} Kf7 {[%emt 0:00:36]} 20. Nb5 {[%emt 0:02:32]} Nf6 {[%emt 0:14:29]} 21. Bxf6 {[%emt 0:08:24]} Kxf6 {[%emt 0:00:15]} 22. Nc7 {[%emt 0:00:03]} Bf8 {[%emt 0:04:19]} 23. Nxe8+ {[%emt 0:00:20]} Rxe8 {[%emt 0:00:09]} 24. Rb6 {[%emt 0:00:12]} Bc5 {[%emt 0:02:45]} 25. Rxb7 {[%emt 0:00:07]} Bd4 {[%emt 0:04:55]} 26. Rd1 {[%emt 0:05:29]} Ke5 {[%emt 0:00:06]} 27. Bd3 {[%emt 0:07:25]} Nxd3 {[%emt 0:01:12]} 28. cxd3 {[%emt 0:00:01]} Be3 {[%emt 0:01:30]} 29. Rb5+ {[%emt 0:03:47]} Kd4 {[%emt 0:00:12]} 30. Rxa5 {[%emt 0:00:26]} g5 {[%emt 0:00:18]} 31. Rxg5 {[%emt 0:03:26]} f3 {[%emt 0:01:58]} 32. Rg7 {[%emt 0:00:31]} f2 {[%emt 0:00:41]} 33. Kb2 {[%emt 0:03:25]} Bd2 {[%emt 0:04:00]} 34. Rf7 {[%emt 0:04:09]} Bc3+ {[%emt 0:00:06]} 35. Kc2 {[%emt 0:00:49]} Be1 {[%emt 0:00:34]} 36. Rf3 {[%emt 0:00:29]} Rg8 {[%emt 0:01:59]} 37. g3 {[%emt 0:00:49]} h5 {[%emt 0:01:10]} 38. Ra1 {[%emt 0:03:39]} h4 {[%emt 0:00:36]} 39. gxh4 {[%emt 0:03:31]} Rg1 {[%emt 0:00:48]} 40. Rxf2 {[%emt 0:00:05]} Bxf2 {[%emt 0:00:45]} 41. Rxg1 {[%emt 0:00:06]} Bxg1 {[%emt 0:00:06]} 42. b4 {[%emt 0:00:35]} Bxh2 {[%emt 0:00:18]} 43. h5 {[%emt 0:00:13]} Ke5 {[%emt 0:01:52]} 44. Kc3 {[%emt 0:02:10]} Kd6 {[%emt 0:00:37]} 45. h6 {[%emt 0:01:23]} Bf4 {[%emt 0:00:19]} 46. h7 {[%emt 0:00:12]} Be5+ {[%emt 0:00:06]} 47. Kc4 {[%emt 0:00:02]} Kc6 {[%emt 0:00:06]} 48. d4 {[%emt 0:00:10]} Bg7 {[%emt 0:00:08]} 49. e5 {[%emt 0:00:02]} Kb6 {[%emt 0:01:26]} 50. a5+ {[%emt 0:00:07]} Kb7 {[%emt 0:00:31]} 51. Kb5 {[%emt 0:00:34]} Kc7 {[%emt 0:00:16]} 52. a6 {[%emt 0:00:29]} Kb8 {[%emt 0:00:12]} 53. Kc6 {[%emt 0:00:18]} Ka7 {[%emt 0:00:04]} 54. b5 {[%emt 0:00:04]} Kb8 {[%emt 0:00:06]} 55. Kd7 {[%emt 0:00:06]} 1-0

[Event "Budapest One Week IM-B 03-2025"]
[Site "Budapest"]
[Date "2025.03.18"]
[Round "2.5"]
[White "Ongut, Tamas Gunes"]
[Black "Mrithyunjay Mahadevan"]
[Result "1-0"]
[Annotator "RC"]
[ECO "A04"]
[WhiteElo "2290"]
[BlackElo "2295"]
[PlyCount "91"]
[EventDate "2025.03.17"]
[EventType "tourn"]
[EventCountry "HUN"]
[SourceTitle "playchess.com"]
[Source "ChessBase"]
[SourceQuality "1"]
[TimeControl "5400+30"]

1. Nf3 {[%emt 0:16:00]} c5 {[%emt 0:00:18]} 2. c4 {[%emt 0:00:17]} Nc6 {[%emt 0:00:44]} 3. Nc3 {[%emt 0:00:11]} g6 {[%emt 0:01:11]} 4. e3 {[%emt 0:00:41]} Nf6 {[%emt 0:01:16]} 5. d4 {[%emt 0:01:55]} cxd4 {[%emt 0:00:06]} 6. exd4 {[%emt 0:00:05]} d5 {[%emt 0:00:31]} 7. cxd5 {[%emt 0:00:13]} Nxd5 {[%emt 0:00:32]} 8. Qb3 {[%emt 0:00:17]} Nxc3 {[%emt 0:01:17]} 9. Bc4 {[%emt 0:00:09]} Nd5 {[%emt 0:01:59]} 10. Bxd5 {[%emt 0:00:10]} e6 {[%emt 0:00:06]} 11. Bxc6+ {[%emt 0:00:08]} bxc6 {[%emt 0:00:03]} 12. O-O {[%emt 0:00:45]} Bg7 {[%emt 0:01:17]} 13. Bg5 {[%emt 0:03:08]} Qd6 {[%emt 0:00:43]} 14. Rac1 {[%emt 0:04:40]} O-O {[%emt 0:01:23]} 15. Qe3 {[%emt 0:02:14]} Bb7 {[%emt 0:09:07]} 16. Rc5 {[%emt 0:02:02]} f6 {[%emt 0:02:45]} 17. Bf4 {[%emt 0:01:17]} Qd7 {[%emt 0:00:16]} 18. h4 {[%emt 0:01:17]} Rfe8 {[%emt 0:01:23]} 19. Bh6 {[%emt 0:02:00]} Bh8 {[%emt 0:03:39]} 20. Re1 {[%emt 0:02:55]} Rad8 {[%emt 0:02:01]} 21. Qb3 {[%emt 0:06:33]} Qf7 {[%emt 0:01:29]} 22. Re3 {[%emt 0:02:36]} Rd5 {[%emt 0:02:39]} 23. Qa3 {[%emt 0:04:38]} Bg7 {[%emt 0:07:25]} 24. Bxg7 {[%emt 0:00:21]} Kxg7 {[%emt 0:00:10]} 25. Rxd5 {[%emt 0:01:14]} cxd5 {[%emt 0:01:37]} 26. Qxa7 {[%emt 0:00:24]} Ra8 {[%emt 0:03:27]} 27. Qb6 {[%emt 0:00:36]} Rxa2 {[%emt 0:01:42]} 28. Rc3 {[%emt 0:05:15]} Ra6 {[%emt 0:01:14]} 29. Qc7 {[%emt 0:00:31]} Ba8 {[%emt 0:01:35]} 30. Ng5 {[%emt 0:02:51]} Qxc7 {[%emt 0:03:56]} 31. Rxc7+ {[%emt 0:00:08]} Kg8 {[%emt 0:00:05]} 32. Nxh7 {[%emt 0:00:08]} e5 {[%emt 0:00:10]} 33. dxe5 {[%emt 0:07:09]} fxe5 {[%emt 0:00:05]} 34. Ng5 {[%emt 0:00:06]} d4 {[%emt 0:01:32]} 35. Rd7 {[%emt 0:00:04]} Bc6 {[%emt 0:04:43]} 36. Rd6 {[%emt 0:00:09]} Bb5 {[%emt 0:00:27]} 37. Rxa6 {[%emt 0:00:50]} Bxa6 {[%emt 0:00:06]} 38. Nf3 {[%emt 0:00:50]} d3 {[%emt 0:00:06]} 39. Nd2 {[%emt 0:00:09]} Kg7 {[%emt 0:03:59]} 40. f3 {[%emt 0:01:07]} Kh6 {[%emt 0:00:05]} 41. Kf2 {[%emt 0:00:09]} g5 {[%emt 0:00:08]} 42. hxg5+ {[%emt 0:00:08]} Kxg5 {[%emt 0:00:06]} 43. g3 {[%emt 0:00:05]} Bb5 {[%emt 0:00:31]} 44. Ke3 {[%emt 0:00:09]} Kf5 {[%emt 0:00:17]} 45. Ne4 {[%emt 0:00:20]} Ke6 {[%emt 0:00:32]} 46. Nc5+ {[%emt 0:00:37]} 1-0